[Event "*** Titled Tuesday Blitz"]
[Site "Chess.com"]
[Date "2020.04.28"]
[Round "2"]
[White "vanyakuba"]
[Black "LittlePeasant"]
[Result "0-1"]
[WhiteElo "2410"]
[BlackElo "2753"]
[TimeControl "180+1"]
[EndTime "10:19:03 PDT"]
[Termination "LittlePeasant won on time"]

1. e4 {[%clk 0:03:00]} 1... c5 {[%clk 0:03:00]} 2. c3 {[%clk 0:02:59.8]} 2...
Nf6 {[%clk 0:02:59.8]} 3. e5 {[%clk 0:02:59.7]} 3... Nd5 {[%clk 0:03:00.2]} 4.
g3 {[%clk 0:03:00.6]} 4... d6 {[%clk 0:02:58.8]} 5. exd6 {[%clk 0:03:00.6]} 5...
e6 {[%clk 0:02:59.2]} 6. Bg2 {[%clk 0:03:00.9]} 6... Bxd6 {[%clk 0:02:59.5]} 7.
Nf3 {[%clk 0:03:01.3]} 7... O-O {[%clk 0:02:59.3]} 8. O-O {[%clk 0:03:01.6]}
8... Nc6 {[%clk 0:02:21.7]} 9. d4 {[%clk 0:03:01.3]} 9... h6 {[%clk 0:02:07.2]}
10. c4 {[%clk 0:02:56.2]} 10... Nf6 {[%clk 0:02:06.2]} 11. Nc3 {[%clk
0:02:53.9]} 11... Bd7 {[%clk 0:02:05]} 12. h3 {[%clk 0:02:39]} 12... Rc8 {[%clk
0:02:04.2]} 13. d5 {[%clk 0:02:36.3]} 13... exd5 {[%clk 0:02:04]} 14. cxd5
{[%clk 0:02:34.3]} 14... Ne7 {[%clk 0:01:59.4]} 15. Nd2 {[%clk 0:02:27.2]} 15...
Nf5 {[%clk 0:01:32.5]} 16. Nc4 {[%clk 0:02:17.2]} 16... Bb8 {[%clk 0:01:31.4]}
17. a4 {[%clk 0:02:15.9]} 17... b6 {[%clk 0:01:28.9]} 18. Re1 {[%clk 0:02:08.2]}
18... Re8 {[%clk 0:01:27.5]} 19. Rxe8+ {[%clk 0:01:48.4]} 19... Bxe8 {[%clk
0:01:28.4]} 20. Qd3 {[%clk 0:01:23]} 20... Bd7 {[%clk 0:01:02]} 21. Bd2 {[%clk
0:01:21.3]} 21... Nd4 {[%clk 0:00:59.9]} 22. Re1 {[%clk 0:01:15]} 22... Bf5
{[%clk 0:00:59.1]} 23. Ne4 {[%clk 0:01:02.2]} 23... Nxd5 {[%clk 0:00:53.2]} 24.
Ne3 {[%clk 0:00:39.1]} 24... Nxe3 {[%clk 0:00:48.7]} 25. Bxe3 {[%clk 0:00:40]}
25... Qd7 {[%clk 0:00:46.5]} 26. g4 {[%clk 0:00:38.2]} 26... Bg6 {[%clk
0:00:38.5]} 27. Qc4 {[%clk 0:00:22.4]} 27... Re8 {[%clk 0:00:30.7]} 28. Nc3
{[%clk 0:00:18]} 28... Nc2 {[%clk 0:00:19]} 29. Rd1 {[%clk 0:00:17.8]} 29...
Nxe3 {[%clk 0:00:19.4]} 30. fxe3 {[%clk 0:00:16.5]} 30... Qc7 {[%clk 0:00:19.8]}
31. Nd5 {[%clk 0:00:14.4]} 31... Qh2+ {[%clk 0:00:19.8]} 32. Kf1 {[%clk
0:00:14.9]} 32... Qg3 {[%clk 0:00:19.7]} 33. Qe2 {[%clk 0:00:07.6]} 33... Be5
{[%clk 0:00:18.4]} 34. b3 {[%clk 0:00:05.4]} 34... Kh7 {[%clk 0:00:17]} 35. Qf3
{[%clk 0:00:05]} 35... Qxf3+ {[%clk 0:00:14.4]} 36. Bxf3 {[%clk 0:00:05.9]}
36... Bc2 {[%clk 0:00:14.9]} 37. Rc1 {[%clk 0:00:04.8]} 37... Bxb3 {[%clk
0:00:15]} 38. Kf2 {[%clk 0:00:03.8]} 38... Bxa4 {[%clk 0:00:12.2]} 39. Be4+
{[%clk 0:00:03.9]} 39... g6 {[%clk 0:00:12]} 40. Bf3 {[%clk 0:00:03.2]} 40...
Kg7 {[%clk 0:00:11.8]} 41. h4 {[%clk 0:00:02.9]} 41... Bd7 {[%clk 0:00:11.8]}
42. Rd1 {[%clk 0:00:02.1]} 42... Be6 {[%clk 0:00:11.9]} 43. Nf4 {[%clk
0:00:01.5]} 43... Bxf4 {[%clk 0:00:11.7]} 44. exf4 {[%clk 0:00:02.4]} 44... Bb3
{[%clk 0:00:12.3]} 45. Rd3 {[%clk 0:00:02.2]} 45... c4 {[%clk 0:00:12.5]} 46.
Rd7 {[%clk 0:00:02.7]} 46... c3 {[%clk 0:00:12.5]} 47. Rc7 {[%clk 0:00:02.9]}
47... c2 {[%clk 0:00:12.8]} 48. g5 {[%clk 0:00:02.2]} 48... hxg5 {[%clk
0:00:12.6]} 49. fxg5 {[%clk 0:00:02.4]} 49... a5 {[%clk 0:00:12.8]} 50. h5
{[%clk 0:00:02.4]} 50... gxh5 {[%clk 0:00:13.3]} 51. Bxh5 {[%clk 0:00:03.3]}
51... a4 {[%clk 0:00:13]} 52. g6 {[%clk 0:00:03.6]} 52... Re5 {[%clk 0:00:10.5]}
53. Bf3 {[%clk 0:00:03.8]} 53... Rc5 {[%clk 0:00:10.5]} 54. Rxf7+ {[%clk
0:00:03.7]} 54... Bxf7 {[%clk 0:00:10.1]} 55. gxf7 {[%clk 0:00:04.2]} 55... c1=Q
{[%clk 0:00:10.1]} 0-1

[Event "*** Titled Tuesday Blitz"]
[Site "Chess.com"]
[Date "2020.04.28"]
[Round "2"]
[White "AtabayevSaparmyrat"]
[Black "IMDT02"]
[Result "1-0"]
[WhiteElo "2689"]
[BlackElo "2446"]
[TimeControl "180+1"]
[EndTime "10:19:06 PDT"]
[Termination "AtabayevSaparmyrat won by resignation"]

1. e4 {[%clk 0:03:00]} 1... c5 {[%clk 0:02:59.2]} 2. Nf3 {[%clk 0:02:59.9]} 2...
Nc6 {[%clk 0:02:59.5]} 3. d4 {[%clk 0:03:00.3]} 3... cxd4 {[%clk 0:02:59.9]} 4.
Nxd4 {[%clk 0:03:01.2]} 4... e5 {[%clk 0:02:58.9]} 5. Nb5 {[%clk 0:03:00.9]}
5... d6 {[%clk 0:02:59.2]} 6. N1c3 {[%clk 0:03:00.8]} 6... a6 {[%clk 0:02:59.3]}
7. Na3 {[%clk 0:03:01.2]} 7... Be7 {[%clk 0:02:59.5]} 8. Nc4 {[%clk 0:02:57.4]}
8... b5 {[%clk 0:02:59.1]} 9. Ne3 {[%clk 0:02:56.5]} 9... Nf6 {[%clk 0:02:59.6]}
10. Ned5 {[%clk 0:02:52.4]} 10... O-O {[%clk 0:02:58.2]} 11. Be3 {[%clk
0:02:45.8]} 11... Rb8 {[%clk 0:02:53.1]} 12. Be2 {[%clk 0:02:41]} 12... b4
{[%clk 0:02:36.5]} 13. Nxf6+ {[%clk 0:02:38.1]} 13... Bxf6 {[%clk 0:02:37.4]}
14. Nd5 {[%clk 0:02:39]} 14... Bg5 {[%clk 0:02:37.4]} 15. O-O {[%clk 0:02:24.1]}
15... Be6 {[%clk 0:02:34.3]} 16. Qd2 {[%clk 0:02:16.3]} 16... Bxe3 {[%clk
0:02:30.9]} 17. Nxe3 {[%clk 0:02:14.6]} 17... a5 {[%clk 0:02:26.4]} 18. Rfd1
{[%clk 0:02:11.2]} 18... Nd4 {[%clk 0:02:25.5]} 19. Bf1 {[%clk 0:01:59.1]} 19...
Qg5 {[%clk 0:02:07]} 20. Kh1 {[%clk 0:01:58.1]} 20... Rfd8 {[%clk 0:01:58.7]}
21. c3 {[%clk 0:01:47.9]} 21... Nc6 {[%clk 0:01:53.9]} 22. Bc4 {[%clk
0:01:11.3]} 22... Rbc8 {[%clk 0:01:27.7]} 23. Bd5 {[%clk 0:01:03.8]} 23... bxc3
{[%clk 0:01:20]} 24. bxc3 {[%clk 0:00:56]} 24... Ne7 {[%clk 0:01:19.4]} 25. Bxe6
{[%clk 0:00:40.4]} 25... fxe6 {[%clk 0:01:19.2]} 26. c4 {[%clk 0:00:40.9]} 26...
Rc5 {[%clk 0:01:15.7]} 27. Rab1 {[%clk 0:00:34.8]} 27... Nc6 {[%clk 0:00:37.7]}
28. Rb5 {[%clk 0:00:34.5]} 28... Qf4 {[%clk 0:00:31.1]} 29. f3 {[%clk
0:00:23.7]} 29... Nd4 {[%clk 0:00:31.1]} 30. Rxa5 {[%clk 0:00:21.5]} 30... Rxa5
{[%clk 0:00:07.3]} 31. Qxa5 {[%clk 0:00:22.4]} 31... Rf8 {[%clk 0:00:05.4]} 32.
Qd2 {[%clk 0:00:21.3]} 32... h5 {[%clk 0:00:04.2]} 33. Nc2 {[%clk 0:00:19.9]}
33... Qxd2 {[%clk 0:00:01.9]} 34. Rxd2 {[%clk 0:00:20.8]} 34... Nxc2 {[%clk
0:00:01.8]} 35. Rxc2 {[%clk 0:00:21.7]} 35... Rc8 {[%clk 0:00:02.2]} 36. Kg1
{[%clk 0:00:20.9]} 36... d5 {[%clk 0:00:02.7]} 37. exd5 {[%clk 0:00:18.7]} 37...
exd5 {[%clk 0:00:03.6]} 38. c5 {[%clk 0:00:19.3]} 38... Kf7 {[%clk 0:00:03.9]}
39. Kf2 {[%clk 0:00:19.5]} 39... Ke6 {[%clk 0:00:04.4]} 40. Ke3 {[%clk
0:00:13.7]} 40... g5 {[%clk 0:00:03.9]} 41. g3 {[%clk 0:00:10.9]} 41... Ra8
{[%clk 0:00:02.3]} 42. c6 {[%clk 0:00:09.8]} 42... Rc8 {[%clk 0:00:02.7]} 43. f4
{[%clk 0:00:10.1]} 43... gxf4+ {[%clk 0:00:02.6]} 44. gxf4 {[%clk 0:00:11]}
44... e4 {[%clk 0:00:02.5]} 45. Kd4 {[%clk 0:00:05.4]} 45... Kd6 {[%clk
0:00:02.9]} 46. c7 {[%clk 0:00:06.3]} 46... Rxc7 {[%clk 0:00:01.5]} 47. Rxc7
{[%clk 0:00:07.2]} 47... Kxc7 {[%clk 0:00:02.4]} 48. a4 {[%clk 0:00:07.9]} 48...
Kb6 {[%clk 0:00:02.6]} 49. f5 {[%clk 0:00:08.4]} 49... Ka5 {[%clk 0:00:03]} 50.
f6 {[%clk 0:00:08.9]} 50... Kxa4 {[%clk 0:00:03.9]} 51. f7 {[%clk 0:00:09.4]}
51... e3 {[%clk 0:00:03]} 1-0

[Event "*** Titled Tuesday Blitz"]
[Site "Chess.com"]
[Date "2020.04.28"]
[Round "2"]
[White "Gajuchess"]
[Black "kingnb"]
[Result "0-1"]
[WhiteElo "2744"]
[BlackElo "2452"]
[TimeControl "180+1"]
[EndTime "10:19:06 PDT"]
[Termination "kingnb won by resignation"]

1. Nf3 {[%clk 0:03:00.9]} 1... Nf6 {[%clk 0:02:57.5]} 2. g3 {[%clk 0:03:01.1]}
2... g6 {[%clk 0:02:58.4]} 3. Bg2 {[%clk 0:03:02]} 3... Bg7 {[%clk 0:02:59.3]}
4. O-O {[%clk 0:03:02.9]} 4... O-O {[%clk 0:03:00.2]} 5. c4 {[%clk 0:03:03.8]}
5... d6 {[%clk 0:03:00.9]} 6. d4 {[%clk 0:03:04.1]} 6... c6 {[%clk 0:03:01]} 7.
Nc3 {[%clk 0:03:05]} 7... Qa5 {[%clk 0:03:00.3]} 8. e4 {[%clk 0:03:03.6]} 8...
Be6 {[%clk 0:03:00.2]} 9. d5 {[%clk 0:03:00.5]} 9... cxd5 {[%clk 0:03:00.6]} 10.
cxd5 {[%clk 0:03:00.2]} 10... Bd7 {[%clk 0:03:00.6]} 11. Bd2 {[%clk 0:02:48.6]}
11... Rc8 {[%clk 0:02:59.6]} 12. Re1 {[%clk 0:02:47.9]} 12... Na6 {[%clk
0:02:58]} 13. a3 {[%clk 0:02:46.4]} 13... Qd8 {[%clk 0:02:55.4]} 14. Bf1 {[%clk
0:02:39.2]} 14... Rab8 {[%clk 0:02:36]} 15. Rc1 {[%clk 0:02:34.7]} 15... Ng4
{[%clk 0:02:34.8]} 16. h3 {[%clk 0:02:26.5]} 16... Ne5 {[%clk 0:02:34.1]} 17.
Nxe5 {[%clk 0:02:26.8]} 17... Bxe5 {[%clk 0:02:35]} 18. Be3 {[%clk 0:02:25.4]}
18... Nc5 {[%clk 0:02:11.2]} 19. b4 {[%clk 0:02:25.1]} 19... Bxc3 {[%clk
0:02:08.8]} 20. Rxc3 {[%clk 0:02:26]} 20... Nxe4 {[%clk 0:02:07]} 21. Rxc8
{[%clk 0:02:26.4]} 21... Rxc8 {[%clk 0:02:06]} 22. Bxa7 {[%clk 0:02:18.3]} 22...
Nc3 {[%clk 0:02:03.5]} 23. Qd2 {[%clk 0:02:14.7]} 23... b6 {[%clk 0:01:50.1]}
24. Ba6 {[%clk 0:00:34.7]} 24... Ra8 {[%clk 0:01:46.1]} 25. Qxc3 {[%clk
0:00:33.4]} 25... Rxa7 {[%clk 0:01:44.8]} 26. Bf1 {[%clk 0:00:34.3]} 26... Be8
{[%clk 0:01:30.9]} 27. b5 {[%clk 0:00:32.2]} 27... Qa8 {[%clk 0:01:30.3]} 28.
Qd4 {[%clk 0:00:29.4]} 28... Qb8 {[%clk 0:01:24.8]} 29. Re3 {[%clk 0:00:29]}
29... Rc7 {[%clk 0:01:24.5]} 30. Qh4 {[%clk 0:00:25.6]} 30... Qb7 {[%clk
0:01:19.2]} 31. a4 {[%clk 0:00:21.6]} 31... f6 {[%clk 0:01:16.8]} 32. Qe4 {[%clk
0:00:20.7]} 32... Bf7 {[%clk 0:01:16.8]} 33. Bg2 {[%clk 0:00:21.2]} 33... Kf8
{[%clk 0:01:12]} 34. Qd4 {[%clk 0:00:21.2]} 34... Rc5 {[%clk 0:01:11.2]} 35. Qf4
{[%clk 0:00:21.2]} 35... Bxd5 {[%clk 0:01:07.8]} 36. Qh6+ {[%clk 0:00:20.3]}
36... Kg8 {[%clk 0:01:08.2]} 37. Bxd5+ {[%clk 0:00:17.1]} 37... Rxd5 {[%clk
0:01:06]} 38. Re1 {[%clk 0:00:17]} 38... Rc5 {[%clk 0:00:58.3]} 39. Qf4 {[%clk
0:00:16.1]} 39... Qc7 {[%clk 0:00:53.9]} 40. Qd4 {[%clk 0:00:16.5]} 40... Kf8
{[%clk 0:00:47.6]} 41. Qe3 {[%clk 0:00:16.2]} 41... Re5 {[%clk 0:00:45]} 42.
Qh6+ {[%clk 0:00:16]} 42... Kg8 {[%clk 0:00:43.4]} 43. Rc1 {[%clk 0:00:16.5]}
43... Rc5 {[%clk 0:00:42.6]} 44. Rxc5 {[%clk 0:00:15.4]} 44... dxc5 {[%clk
0:00:43.5]} 45. Qd2 {[%clk 0:00:14.3]} 45... Kf7 {[%clk 0:00:41.7]} 46. Qd5+
{[%clk 0:00:13.7]} 46... e6 {[%clk 0:00:41.9]} 47. Qc4 {[%clk 0:00:14.3]} 47...
Qd6 {[%clk 0:00:39.4]} 48. Qc1 {[%clk 0:00:10.6]} 48... Ke8 {[%clk 0:00:31.2]}
49. Qh6 {[%clk 0:00:09.5]} 49... Qc7 {[%clk 0:00:28.5]} 50. Qe3 {[%clk
0:00:07.4]} 50... Kd7 {[%clk 0:00:28]} 51. Qd3+ {[%clk 0:00:05.6]} 51... Kc8
{[%clk 0:00:27.2]} 52. Qe3 {[%clk 0:00:06.5]} 52... e5 {[%clk 0:00:24.1]} 53.
Qe4 {[%clk 0:00:06.3]} 53... c4 {[%clk 0:00:22.5]} 54. Qxc4 {[%clk 0:00:07.2]}
54... Qxc4 {[%clk 0:00:21.8]} 0-1

[Event "*** Titled Tuesday Blitz"]
[Site "Chess.com"]
[Date "2020.04.28"]
[Round "2"]
[White "giantslayer83"]
[Black "GuerrieroFromLevant"]
[Result "0-1"]
[WhiteElo "2688"]
[BlackElo "2340"]
[TimeControl "180+1"]
[EndTime "10:19:06 PDT"]
[Termination "GuerrieroFromLevant won by resignation"]

1. d4 {[%clk 0:03:00.9]} 1... d5 {[%clk 0:02:59.4]} 2. c4 {[%clk 0:03:00.1]}
2... e6 {[%clk 0:02:59.6]} 3. Nc3 {[%clk 0:02:58.6]} 3... c5 {[%clk 0:02:59.4]}
4. e3 {[%clk 0:02:56.1]} 4... dxc4 {[%clk 0:02:59]} 5. Bxc4 {[%clk 0:02:54.8]}
5... Nf6 {[%clk 0:02:59.9]} 6. Nf3 {[%clk 0:02:54.7]} 6... a6 {[%clk 0:02:59.4]}
7. a4 {[%clk 0:02:51.6]} 7... Nc6 {[%clk 0:02:58.6]} 8. O-O {[%clk 0:02:51.5]}
8... Be7 {[%clk 0:02:47.6]} 9. Qe2 {[%clk 0:02:50.1]} 9... cxd4 {[%clk
0:02:46.2]} 10. Rd1 {[%clk 0:02:49.5]} 10... e5 {[%clk 0:02:46.1]} 11. exd4
{[%clk 0:02:49.5]} 11... exd4 {[%clk 0:02:44]} 12. Nxd4 {[%clk 0:02:49.7]} 12...
Nxd4 {[%clk 0:02:44.9]} 13. Qe5 {[%clk 0:02:49.9]} 13... O-O {[%clk 0:02:43.5]}
14. Rxd4 {[%clk 0:02:49.9]} 14... Qe8 {[%clk 0:02:43.4]} 15. h3 {[%clk
0:02:33.4]} 15... Bd7 {[%clk 0:02:39.4]} 16. Bf4 {[%clk 0:02:30.6]} 16... Bc6
{[%clk 0:02:37.1]} 17. Re1 {[%clk 0:02:28.7]} 17... Bc5 {[%clk 0:02:22.3]} 18.
Rdd1 {[%clk 0:02:16.5]} 18... Qxe5 {[%clk 0:02:19.1]} 19. Bxe5 {[%clk
0:02:14.1]} 19... Nd7 {[%clk 0:02:16.9]} 20. Bd6 {[%clk 0:02:13.1]} 20... Bxd6
{[%clk 0:02:13.7]} 21. Rxd6 {[%clk 0:02:14]} 21... Rae8 {[%clk 0:02:10.8]} 22.
Red1 {[%clk 0:02:11.1]} 22... Nb6 {[%clk 0:02:06.6]} 23. Bxa6 {[%clk 0:02:00.5]}
23... Nxa4 {[%clk 0:01:59.9]} 24. Nxa4 {[%clk 0:01:40.6]} 24... Bxa4 {[%clk
0:01:58.5]} 25. R1d4 {[%clk 0:01:40.3]} 25... bxa6 {[%clk 0:01:43.3]} 26. Rxa4
{[%clk 0:01:39.9]} 26... Re1+ {[%clk 0:01:41.6]} 27. Kh2 {[%clk 0:01:39.7]}
27... Re2 {[%clk 0:01:41.8]} 28. b4 {[%clk 0:01:31.3]} 28... Rxf2 {[%clk
0:01:41.4]} 29. Rdxa6 {[%clk 0:01:26]} 29... h5 {[%clk 0:01:38.7]} 30. Ra8
{[%clk 0:01:25.4]} 30... Rb2 {[%clk 0:01:30.5]} 31. Kg3 {[%clk 0:01:22]} 31...
Rxa8 {[%clk 0:01:12.3]} 32. Rxa8+ {[%clk 0:01:21]} 32... Kh7 {[%clk 0:01:13]}
33. Rb8 {[%clk 0:01:20.4]} 33... g5 {[%clk 0:01:10.2]} 34. b5 {[%clk 0:01:16.3]}
34... Rb3+ {[%clk 0:01:02.8]} 35. Kf2 {[%clk 0:01:15.8]} 35... Rb2+ {[%clk
0:01:03.1]} 36. Kf3 {[%clk 0:01:16]} 36... f5 {[%clk 0:01:03]} 37. b6 {[%clk
0:01:14.1]} 37... Rb3+ {[%clk 0:01:02.7]} 38. Kf2 {[%clk 0:01:03.5]} 38... f4
{[%clk 0:00:49.3]} 39. b7 {[%clk 0:00:54.8]} 39... Kg7 {[%clk 0:00:45.7]} 40.
Ke2 {[%clk 0:00:53.2]} 40... g4 {[%clk 0:00:42.7]} 41. h4 {[%clk 0:00:30.7]}
41... Rb2+ {[%clk 0:00:25.7]} 42. Kd1 {[%clk 0:00:29.1]} 42... g3 {[%clk
0:00:24]} 43. Ke1 {[%clk 0:00:16.9]} 43... f3 {[%clk 0:00:21.6]} 44. Re8 {[%clk
0:00:09.7]} 44... f2+ {[%clk 0:00:19.1]} 45. Kf1 {[%clk 0:00:08.6]} 45... Rb1+
{[%clk 0:00:13.4]} 46. Ke2 {[%clk 0:00:06.2]} 46... f1=Q+ {[%clk 0:00:12.2]} 47.
Kd2 {[%clk 0:00:05.6]} 47... Qf2+ {[%clk 0:00:13.1]} 48. Kc3 {[%clk 0:00:05.8]}
48... Rxb7 {[%clk 0:00:13.7]} 49. Re7+ {[%clk 0:00:04.1]} 49... Rxe7 {[%clk
0:00:08.3]} 50. Kc4 {[%clk 0:00:05]} 50... Qe3 {[%clk 0:00:08.1]} 51. Kd5 {[%clk
0:00:04.9]} 51... Rd7+ {[%clk 0:00:07.1]} 0-1

[Event "*** Titled Tuesday Blitz"]
[Site "Chess.com"]
[Date "2020.04.28"]
[Round "2"]
[White "viditchess"]
[Black "GM_DarwinLaylo"]
[Result "1/2-1/2"]
[WhiteElo "2906"]
[BlackElo "2584"]
[TimeControl "180+1"]
[EndTime "10:19:07 PDT"]
[Termination "Game drawn by repetition"]

1. d4 {[%clk 0:03:00.9]} 1... d5 {[%clk 0:02:58.3]} 2. c4 {[%clk 0:03:01]} 2...
c6 {[%clk 0:02:58.2]} 3. Nf3 {[%clk 0:03:01]} 3... Nf6 {[%clk 0:02:58.3]} 4. e3
{[%clk 0:02:59]} 4... g6 {[%clk 0:02:48.4]} 5. Nc3 {[%clk 0:02:58.3]} 5... Bg7
{[%clk 0:02:48.7]} 6. Be2 {[%clk 0:02:58.4]} 6... O-O {[%clk 0:02:48.9]} 7. O-O
{[%clk 0:02:58.5]} 7... a6 {[%clk 0:02:41.5]} 8. a4 {[%clk 0:02:56.9]} 8... e6
{[%clk 0:02:35.7]} 9. a5 {[%clk 0:02:46.5]} 9... Re8 {[%clk 0:02:31.9]} 10. Qb3
{[%clk 0:02:39]} 10... Nbd7 {[%clk 0:02:30.2]} 11. Rd1 {[%clk 0:02:37.9]} 11...
Ne4 {[%clk 0:02:18.5]} 12. Bd2 {[%clk 0:02:27]} 12... f5 {[%clk 0:02:15.1]} 13.
Qc2 {[%clk 0:02:01.4]} 13... Qf6 {[%clk 0:02:13]} 14. b4 {[%clk 0:01:58.9]}
14... g5 {[%clk 0:02:10.8]} 15. b5 {[%clk 0:01:51]} 15... g4 {[%clk 0:02:08.8]}
16. Ne1 {[%clk 0:01:46.4]} 16... h5 {[%clk 0:02:02.1]} 17. bxc6 {[%clk
0:01:43.3]} 17... bxc6 {[%clk 0:02:00.9]} 18. cxd5 {[%clk 0:01:32.2]} 18... cxd5
{[%clk 0:01:59.3]} 19. Nxe4 {[%clk 0:01:30.6]} 19... fxe4 {[%clk 0:01:54.6]} 20.
Qc6 {[%clk 0:01:10]} 20... Ra7 {[%clk 0:01:52.6]} 21. Nc2 {[%clk 0:01:05.7]}
21... Rf8 {[%clk 0:01:46.7]} 22. Rf1 {[%clk 0:01:04.5]} 22... Nb8 {[%clk
0:01:38.6]} 23. Qd6 {[%clk 0:00:57.6]} 23... Rb7 {[%clk 0:01:17.5]} 24. Nb4
{[%clk 0:00:19.8]} 24... Rd8 {[%clk 0:01:10.9]} 25. Qg3 {[%clk 0:00:20]} 25...
Bf8 {[%clk 0:00:44.6]} 26. f3 {[%clk 0:00:20.3]} 26... Bxb4 {[%clk 0:00:36]} 27.
fxg4 {[%clk 0:00:20.2]} 27... Qg7 {[%clk 0:00:36.2]} 28. Bxb4 {[%clk 0:00:19.8]}
28... Rxb4 {[%clk 0:00:34.8]} 29. Rac1 {[%clk 0:00:20.4]} 29... Bd7 {[%clk
0:00:25.7]} 30. Rc7 {[%clk 0:00:19]} 30... Rb2 {[%clk 0:00:22.9]} 31. Bd1 {[%clk
0:00:15.5]} 31... Nc6 {[%clk 0:00:17.9]} 32. Qh4 {[%clk 0:00:13.3]} 32... Rf8
{[%clk 0:00:14.5]} 33. Rxf8+ {[%clk 0:00:13.4]} 33... Kxf8 {[%clk 0:00:13.9]}
34. h3 {[%clk 0:00:12.4]} 34... Qe7 {[%clk 0:00:09.8]} 35. Qxh5 {[%clk
0:00:11.8]} 35... Qd6 {[%clk 0:00:07]} 36. Qh8+ {[%clk 0:00:11.9]} 36... Ke7
{[%clk 0:00:06.6]} 37. Rxd7+ {[%clk 0:00:05.8]} 37... Kxd7 {[%clk 0:00:06.1]}
38. Ba4 {[%clk 0:00:06.3]} 38... Kc7 {[%clk 0:00:05.8]} 39. Qg7+ {[%clk
0:00:05.9]} 39... Ne7 {[%clk 0:00:05.9]} 40. g5 {[%clk 0:00:03.4]} 40... Rb1+
{[%clk 0:00:05.8]} 41. Kf2 {[%clk 0:00:03.5]} 41... Rb2+ {[%clk 0:00:06.1]} 42.
Kg1 {[%clk 0:00:04]} 42... Ra2 {[%clk 0:00:05.7]} 43. Be8 {[%clk 0:00:03.6]}
43... Ra1+ {[%clk 0:00:05.2]} 44. Kf2 {[%clk 0:00:03.7]} 44... Ra2+ {[%clk
0:00:05.6]} 45. Kg1 {[%clk 0:00:04.4]} 45... Kd8 {[%clk 0:00:05.6]} 46. Qf8
{[%clk 0:00:04.7]} 46... Ra1+ {[%clk 0:00:04.6]} 47. Kf2 {[%clk 0:00:04.8]}
47... Ra2+ {[%clk 0:00:04.9]} 48. Kg1 {[%clk 0:00:05]} 48... Ra1+ {[%clk
0:00:05.2]} 49. Kf2 {[%clk 0:00:05.1]} 49... Ra2+ {[%clk 0:00:05.7]} 50. Kg1
{[%clk 0:00:05.7]} 1/2-1/2

[Event "*** Titled Tuesday Blitz"]
[Site "Chess.com"]
[Date "2020.04.28"]
[Round "2"]
[White "Irishchessman16"]
[Black "maxsergej"]
[Result "1-0"]
[WhiteElo "2409"]
[BlackElo "2123"]
[TimeControl "180+1"]
[EndTime "10:19:08 PDT"]
[Termination "Irishchessman16 won on time"]

1. e4 {[%clk 0:03:00.9]} 1... c5 {[%clk 0:02:59.4]} 2. Nf3 {[%clk 0:03:00.9]}
2... Nc6 {[%clk 0:02:59]} 3. Bb5 {[%clk 0:02:57.1]} 3... g6 {[%clk 0:02:58.2]}
4. Bxc6 {[%clk 0:02:55.5]} 4... bxc6 {[%clk 0:02:57.5]} 5. O-O {[%clk
0:02:52.2]} 5... Bg7 {[%clk 0:02:57.2]} 6. d3 {[%clk 0:02:47.9]} 6... Nf6 {[%clk
0:02:56.4]} 7. Nfd2 {[%clk 0:02:46]} 7... O-O {[%clk 0:02:55.4]} 8. f4 {[%clk
0:02:45.6]} 8... d6 {[%clk 0:02:54.7]} 9. Nc3 {[%clk 0:02:44.5]} 9... Rb8 {[%clk
0:02:46.8]} 10. Nc4 {[%clk 0:02:35.1]} 10... Be6 {[%clk 0:02:32.2]} 11. Ne3
{[%clk 0:02:31]} 11... Qc8 {[%clk 0:02:23.3]} 12. f5 {[%clk 0:02:21.6]} 12...
Bd7 {[%clk 0:02:22.8]} 13. g4 {[%clk 0:02:18.5]} 13... Ne8 {[%clk 0:02:19.7]}
14. g5 {[%clk 0:01:57.9]} 14... f6 {[%clk 0:02:12.7]} 15. fxg6 {[%clk
0:01:47.5]} 15... hxg6 {[%clk 0:02:11.7]} 16. h4 {[%clk 0:01:45.5]} 16... fxg5
{[%clk 0:01:55.1]} 17. hxg5 {[%clk 0:01:46]} 17... Rxf1+ {[%clk 0:01:53.9]} 18.
Qxf1 {[%clk 0:01:46.4]} 18... Bd4 {[%clk 0:01:47.4]} 19. Kh2 {[%clk 0:01:39.1]}
19... Ng7 {[%clk 0:01:42.8]} 20. Ne2 {[%clk 0:01:33.4]} 20... Be5+ {[%clk
0:01:41.4]} 21. Kg1 {[%clk 0:01:28.9]} 21... Qf8 {[%clk 0:01:40.4]} 22. Qxf8+
{[%clk 0:01:24.3]} 22... Rxf8 {[%clk 0:01:36.7]} 23. Nc4 {[%clk 0:01:16.7]}
23... Bd4+ {[%clk 0:01:27.6]} 24. Nxd4 {[%clk 0:01:14.8]} 24... cxd4 {[%clk
0:01:26.9]} 25. Bd2 {[%clk 0:01:14.6]} 25... Ne6 {[%clk 0:01:14.9]} 26. Rf1
{[%clk 0:01:00.6]} 26... Rxf1+ {[%clk 0:01:13.3]} 27. Kxf1 {[%clk 0:01:01.5]}
27... Kf7 {[%clk 0:01:13.2]} 28. Kf2 {[%clk 0:01:01.2]} 28... c5 {[%clk
0:01:05.6]} 29. Kg3 {[%clk 0:00:57.2]} 29... Ng7 {[%clk 0:01:04.5]} 30. e5
{[%clk 0:00:54.5]} 30... Nh5+ {[%clk 0:01:02.2]} 31. Kh4 {[%clk 0:00:53]} 31...
Ke6 {[%clk 0:00:55.8]} 32. exd6 {[%clk 0:00:51.3]} 32... exd6 {[%clk 0:00:56.1]}
33. b4 {[%clk 0:00:45.9]} 33... d5 {[%clk 0:00:48]} 34. Na5 {[%clk 0:00:44.6]}
34... cxb4 {[%clk 0:00:42.2]} 35. Nb7 {[%clk 0:00:40.2]} 35... Ke5 {[%clk
0:00:28.2]} 36. Nc5 {[%clk 0:00:35.3]} 36... Bc8 {[%clk 0:00:26.5]} 37. Bxb4
{[%clk 0:00:34.7]} 37... Ng7 {[%clk 0:00:26.1]} 38. Kg3 {[%clk 0:00:25.8]} 38...
Nf5+ {[%clk 0:00:26]} 39. Kf2 {[%clk 0:00:22.6]} 39... Ne3 {[%clk 0:00:26]} 40.
c3 {[%clk 0:00:20.7]} 40... Nd1+ {[%clk 0:00:26]} 41. Ke1 {[%clk 0:00:20.3]}
41... Nxc3 {[%clk 0:00:26.2]} 42. a3 {[%clk 0:00:19]} 42... Nb5 {[%clk
0:00:17.3]} 43. Nb3 {[%clk 0:00:18.6]} 43... Nc7 {[%clk 0:00:15]} 44. Bc5 {[%clk
0:00:18.5]} 44... a6 {[%clk 0:00:14.6]} 45. Bxd4+ {[%clk 0:00:18]} 45... Kf5
{[%clk 0:00:14]} 46. Bb6 {[%clk 0:00:17.9]} 46... Ne6 {[%clk 0:00:13.6]} 47. Be3
{[%clk 0:00:18]} 47... Nxg5 {[%clk 0:00:13.5]} 48. Nd4+ {[%clk 0:00:17.5]} 48...
Kg4 {[%clk 0:00:12.4]} 49. Nc6 {[%clk 0:00:16]} 49... Nf3+ {[%clk 0:00:11.4]}
50. Kf2 {[%clk 0:00:16.1]} 50... g5 {[%clk 0:00:09.5]} 51. Ne7 {[%clk
0:00:16.1]} 51... Be6 {[%clk 0:00:08.5]} 52. Ng6 {[%clk 0:00:15.9]} 52... Nh4
{[%clk 0:00:06.9]} 53. Ne5+ {[%clk 0:00:15.2]} 53... Kf5 {[%clk 0:00:06.2]} 54.
Nc6 {[%clk 0:00:15.4]} 54... g4 {[%clk 0:00:06]} 55. Nd4+ {[%clk 0:00:15.5]}
55... Ke5 {[%clk 0:00:05.5]} 56. Nc6+ {[%clk 0:00:15.1]} 56... Kd6 {[%clk
0:00:05.4]} 57. Nb4 {[%clk 0:00:14.7]} 57... a5 {[%clk 0:00:04.9]} 58. Nc2
{[%clk 0:00:13.7]} 58... Bf5 {[%clk 0:00:03.8]} 59. Ne1 {[%clk 0:00:11.3]} 59...
Ng6 {[%clk 0:00:02.8]} 60. a4 {[%clk 0:00:11]} 60... Ne5 {[%clk 0:00:02.8]} 61.
Bf4 {[%clk 0:00:09.8]} 61... Ke6 {[%clk 0:00:01.5]} 62. Ke3 {[%clk 0:00:10.2]}
1-0